[Event "48th Continental Open"]
[Site "Sturbridge, MA"]
[Date "2018.08.18"]
[Round "5.16"]
[White "Kavi, Nithin"]
[Black "Kang, Dorian"]
[Result "1-0"]
[ECO "A04"]
[WhiteElo "1995"]
[BlackElo "1853"]
[PlyCount "77"]
[EventDate "2018.08.??"]
[EventType "swiss"]
[EventRounds "9"]
[EventCountry "USA"]
[TimeControl "6000+10"]
[WhiteClock "1:27:12"]
[BlackClock "0:01:18"]

1. Nf3 {[%emt 0:00:10]} c5 {[%emt 0:00:44]} 2. c4 {[%emt 0:00:10]} Nc6 {
[%emt 0:00:11]} 3. Nc3 {[%emt 0:00:11]} g6 {[%emt 0:00:22]} 4. e3 {[%emt 0:00:
10]} Nf6 {[%emt 0:00:36]} 5. d4 {[%emt 0:00:10]} cxd4 {[%emt 0:00:39]} 6. exd4
{[%emt 0:00:10]} d5 {[%emt 0:00:11]} 7. cxd5 {[%emt 0:00:10]} Nxd5 {[%emt 0:00:
57]} 8. Qb3 {[%emt 0:00:10]} Nxc3 {[%emt 0:01:38]} 9. Bc4 {[%emt 0:00:11]} Nd5
{[%emt 0:12:21]} 10. Bxd5 {[%emt 0:00:10]} e6 {[%emt 0:00:10]} 11. Bxc6+ {
[%emt 0:00:10]} bxc6 {[%emt 0:00:10]} 12. O-O {[%emt 0:00:10]} Qd5 {[%emt 0:07:
32]} 13. Qxd5 {[%emt 0:03:49]} cxd5 {[%emt 0:00:58]} 14. Bf4 {[%emt 0:00:10]}
Be7 {[%emt 0:12:25]} 15. Rfc1 {[%emt 0:00:11]} Bd8 {[%emt 0:06:29]} 16. b4 {
[%emt 0:00:10]} f6 {[%emt 0:13:38]} 17. Rc2 {[%emt 0:00:10]} Kd7 {[%emt 0:09:
22]} 18. Nd2 {[%emt 0:00:10]} Bb6 {[%emt 0:07:42]} 19. Nb3 {[%emt 0:00:11]} Bb7
{[%emt 0:03:21]} 20. a4 {[%emt 0:00:11]} Rhc8 {[%emt 0:23:52]} 21. Rxc8 {
[%emt 0:00:11]} Rxc8 {[%emt 0:00:00]} 22. Be3 {[%emt 0:00:12]} Rc4 {[%emt 0:00:
00]} 23. a5 {[%emt 0:00:10]} Rxb4 {[%emt 0:00:00]} 24. Rb1 {[%emt 0:00:10]}
Bxa5 {[%emt 0:00:00]} 25. Bd2 {[%emt 0:00:10]} Bc6 {[%emt 0:00:00]} 26. Nc5+ {
[%emt 0:00:48]} Kd6 {[%emt 0:00:00]} 27. Bxb4 {[%emt 0:00:10]} Bxb4 {[%emt 0:
00:00]} 28. Rxb4 {[%emt 0:00:10]} e5 {[%emt 0:00:10]} 29. Nb3 {[%emt 0:07:56]}
e4 {[%emt 0:00:10]} 30. Kf1 {[%emt 0:00:13]} f5 {[%emt 0:00:11]} 31. Na5 {
[%emt 0:00:12]} Bd7 {[%emt 0:00:10]} 32. Ke2 {[%emt 0:00:22]} a6 {[%emt 0:00:
10]} 33. Nb7+ {[%emt 0:00:14]} Kc7 {[%emt 0:00:10]} 34. Nc5 {[%emt 0:00:12]}
Bb5+ {[%emt 0:00:11]} 35. Ke3 {[%emt 0:00:19]} h6 {[%emt 0:00:10]} 36. f3 {
[%emt 0:00:12]} Kc6 {[%emt 0:00:10]} 37. Rb2 {[%emt 0:00:13]} g5 {[%emt 0:00:
12]} 38. fxe4 {[%emt 0:00:10]} fxe4 {[%emt 0:00:10]} 39. Rf2 {[%emt 0:00:10]}
1-0

[Event "48th Continental Open"]
[Site "Sturbridge, MA"]
[Date "2018.08.18"]
[Round "5.17"]
[White "Poliannikov, Danila"]
[Black "Yu, Alex"]
[Result "1-0"]
[ECO "B91"]
[WhiteElo "1994"]
[BlackElo "1852"]
[PlyCount "149"]
[EventDate "2018.08.??"]
[EventType "swiss"]
[EventRounds "9"]
[EventCountry "USA"]
[TimeControl "6000+10"]
[WhiteClock "0:00:21"]
[BlackClock "0:01:30"]

1. e4 {[%emt 0:00:10]} c5 {[%emt 0:22:52]} 2. Nf3 {[%emt 0:00:12]} d6 {[%emt 0:
01:01]} 3. d4 {[%emt 0:00:10]} cxd4 {[%emt 0:00:10]} 4. Nxd4 {[%emt 0:00:46]}
Nf6 {[%emt 0:00:11]} 5. Nc3 {[%emt 0:00:11]} a6 {[%emt 0:00:11]} 6. g3 {
[%emt 0:00:23]} e5 {[%emt 0:02:28]} 7. Nb3 {[%emt 0:00:19]} Be6 {[%emt 0:01:12]
} 8. Bg2 {[%emt 0:03:15]} Nbd7 {[%emt 0:00:10]} 9. O-O {[%emt 0:00:11]} Be7 {
[%emt 0:02:01]} 10. a4 {[%emt 0:00:50]} O-O {[%emt 0:01:33]} 11. h3 {[%emt 0:
01:21]} Rc8 {[%emt 0:07:47]} 12. Be3 {[%emt 0:01:29]} Nb6 {[%emt 0:04:11]} 13.
Nd2 {[%emt 0:05:52]} Nc4 {[%emt 0:10:31]} 14. Nxc4 {[%emt 0:00:29]} Bxc4 {
[%emt 0:00:10]} 15. Re1 {[%emt 0:00:43]} Qa5 {[%emt 0:08:07]} 16. Qd2 {[%emt 0:
17:54]} Rfd8 {[%emt 0:08:06]} 17. f4 {[%emt 0:18:32]} Kh8 {[%emt 0:19:38]} 18.
Red1 {[%emt 0:05:15]} exf4 {[%emt 0:04:52]} 19. gxf4 {[%emt 0:02:27]} d5 {
[%emt 0:01:47]} 20. Nxd5 {[%emt 0:13:19]} Qxd2 {[%emt 0:00:22]} 21. Rxd2 {
[%emt 0:00:17]} Bc5 {[%emt 0:03:50]} 22. Bxc5 {[%emt 0:05:48]} Rxc5 {[%emt 0:
00:34]} 23. b3 {[%emt 0:03:45]} Bxd5 {[%emt 0:01:46]} 24. c4 {[%emt 0:00:11]}
Re8 {[%emt 0:00:10]} 25. exd5 {[%emt 0:00:48]} b5 {[%emt 0:00:10]} 26. axb5 {
[%emt 0:04:13]} axb5 {[%emt 0:00:10]} 27. d6 {[%emt 0:00:10]} bxc4 {[%emt 0:00:
10]} 28. d7 {[%emt 0:00:10]} Nxd7 {[%emt 0:00:00]} 29. Rxd7 {[%emt 0:00:10]}
cxb3 {[%emt 0:00:00]} 30. Rb1 {[%emt 0:00:10]} Rf5 {[%emt 0:00:00]} 31. Rd4 {
[%emt 0:01:45]} g6 {[%emt 0:00:09]} 32. Rxb3 {[%emt 0:00:11]} Re2 {[%emt 0:00:
00]} 33. Rb6 {[%emt 0:02:41]} Kg7 {[%emt 0:00:00]} 34. Rbd6 {[%emt 0:00:10]} h5
{[%emt 0:00:00]} 35. R6d5 {[%emt 0:01:35]} Rf6 {[%emt 0:00:00]} 36. Rg5 {
[%emt 0:06:59]} Rb2 {[%emt 0:00:00]} 37. Kh2 {[%emt 0:00:16]} Rf2 {[%emt 0:00:
00]} 38. Kg3 {[%emt 0:00:12]} Ra2 {[%emt 0:00:00]} 39. Rgd5 {[%emt 0:00:11]}
Ra3+ {[%emt 0:00:00]} 40. Rd3 {[%emt 0:00:10]} Ra4 {[%emt 0:00:00]} 41. Rf3 {
[%emt 0:01:40]} Rb4 {[%emt 0:00:00]} 42. Bf1 {[%emt 0:00:11]} Ra4 {[%emt 0:02:
24]} 43. Rg5 {[%emt 0:00:00]} Rb4 {[%emt 0:00:00]} 44. Rb5 {[%emt 0:00:00]} Ra4
{[%emt 0:00:00]} 45. Rc5 {[%emt 0:00:00]} Rb4 {[%emt 0:00:00]} 46. Rc7 {
[%emt 0:00:00]} Ra4 {[%emt 0:00:00]} 47. Bc4 {[%emt 0:00:06]} Ra5 {[%emt 0:00:
55]} 48. Re3 {[%emt 0:00:10]} Raf5 {[%emt 0:00:10]} 49. Re4 {[%emt 0:00:10]}
Ra5 {[%emt 0:00:00]} 50. Rd7 {[%emt 0:00:11]} Ra3+ {[%emt 0:00:30]} 51. Bd3 {
[%emt 0:01:48]} Rb3 {[%emt 0:00:00]} 52. Red4 {[%emt 0:00:10]} Ra3 {[%emt 0:00:
00]} 53. R7d6 {[%emt 0:00:39]} Rxd6 {[%emt 0:00:00]} 54. Rxd6 {[%emt 0:00:10]}
Rb3 {[%emt 0:00:00]} 55. Kg2 {[%emt 0:00:11]} Rb2+ {[%emt 0:00:00]} 56. Kf3 {
[%emt 0:00:10]} Rh2 {[%emt 0:01:01]} 57. Kg3 {[%emt 0:00:00]} Ra2 {[%emt 0:00:
10]} 58. Bc4 {[%emt 0:00:12]} Ra3+ {[%emt 0:00:00]} 59. Rd3 {[%emt 0:00:11]}
Ra4 {[%emt 0:00:00]} 60. Bb5 {[%emt 0:00:00]} Rb4 {[%emt 0:00:00]} 61. Bc6 {
[%emt 0:00:03]} Rc4 {[%emt 0:00:16]} 62. Bf3 {[%emt 0:00:10]} Ra4 {[%emt 0:00:
23]} 63. Rd7 {[%emt 0:00:12]} Ra3 {[%emt 0:00:10]} 64. Kf2 {[%emt 0:00:00]} Ra4
{[%emt 0:00:00]} 65. Ke3 {[%emt 0:00:00]} Ra3+ {[%emt 0:00:11]} 66. Rd3 {
[%emt 0:00:00]} Ra1 {[%emt 0:00:00]} 67. Bd5 {[%emt 0:00:00]} Ra4 {[%emt 0:00:
00]} 68. Rc3 {[%emt 0:00:00]} Ra7 {[%emt 0:00:50]} 69. Kd4 {[%emt 0:00:05]}
Ra4+ {[%emt 0:00:00]} 70. Bc4 {[%emt 0:00:10]} Ra5 {[%emt 0:00:00]} 71. Rb3 {
[%emt 0:00:10]} Rf5 {[%emt 0:00:00]} 72. Ke4 {[%emt 0:00:10]} Rf6 {[%emt 0:00:
00]} 73. Rb7 {[%emt 0:00:11]} Rf5 {[%emt 0:00:00]} 74. Rc7 {[%emt 0:00:50]} Rf6
{[%emt 0:00:00]} 75. Bd5 {[%emt 0:00:29]} 1-0

[Event "48th Continental Open"]
[Site "Sturbridge, MA"]
[Date "2018.08.18"]
[Round "5.18"]
[White "Luo, Terry"]
[Black "Sage, J Timothy"]
[Result "1-0"]
[ECO "E01"]
[WhiteElo "1793"]
[BlackElo "2036"]
[PlyCount "65"]
[EventDate "2018.08.??"]
[EventType "swiss"]
[EventRounds "9"]
[EventCountry "USA"]
[TimeControl "6000+10"]
[WhiteClock "0:22:31"]
[BlackClock "0:07:50"]

1. d4 {[%emt 0:00:10]} Nf6 2. c4 {[%emt 0:00:13]} e6 {[%emt 0:00:31]} 3. g3 {
[%emt 0:00:11]} d5 {[%emt 0:00:24]} 4. Nf3 {[%emt 0:00:12]} Be7 {[%emt 0:00:31]
} 5. Bg2 {[%emt 0:00:15]} O-O {[%emt 0:00:18]} 6. O-O {[%emt 0:00:12]} dxc4 {
[%emt 0:00:45]} 7. Qc2 {[%emt 0:00:15]} b6 {[%emt 0:00:43]} 8. Qxc4 {[%emt 0:
02:30]} Bb7 {[%emt 0:00:48]} 9. Nc3 {[%emt 0:02:11]} Nbd7 {[%emt 0:01:41]} 10.
Rd1 {[%emt 0:02:47]} c5 {[%emt 0:04:36]} 11. Bg5 {[%emt 0:06:51]} Nd5 {[%emt 0:
14:58]} 12. Bxe7 {[%emt 0:01:29]} Qxe7 {[%emt 0:00:51]} 13. Rac1 {[%emt 0:11:
39]} Rac8 {[%emt 0:08:09]} 14. e3 {[%emt 0:09:12]} Nxc3 {[%emt 0:11:31]} 15.
Qxc3 {[%emt 0:00:29]} cxd4 {[%emt 0:00:31]} 16. Qxd4 {[%emt 0:02:29]} Rxc1 {
[%emt 0:00:11]} 17. Rxc1 {[%emt 0:00:11]} Nc5 {[%emt 0:00:38]} 18. Rd1 {
[%emt 0:02:33]} f6 {[%emt 0:11:21]} 19. b4 {[%emt 0:04:50]} Na6 {[%emt 0:08:41]
} 20. a3 {[%emt 0:03:12]} Rc8 {[%emt 0:04:32]} 21. Ne1 {[%emt 0:04:22]} Nb8 {
[%emt 0:14:15]} 22. Bxb7 {[%emt 0:02:49]} Qxb7 {[%emt 0:00:11]} 23. b5 {
[%emt 0:01:16]} Kf7 {[%emt 0:01:42]} 24. Ng2 {[%emt 0:04:07]} Rc7 {[%emt 0:01:
10]} 25. Qg4 {[%emt 0:01:27]} g6 {[%emt 0:03:24]} 26. Qh3 {[%emt 0:03:00]} h5 {
[%emt 0:02:11]} 27. g4 {[%emt 0:01:07]} h4 {[%emt 0:00:10]} 28. Qxh4 {[%emt 0:
00:10]} Kg7 {[%emt 0:00:11]} 29. Nf4 {[%emt 0:10:19]} Qe4 {[%emt 0:00:41]} 30.
g5 {[%emt 0:00:50]} Qf3 {[%emt 0:01:34]} 31. Qh6+ {[%emt 0:00:45]} Kf7 {
[%emt 0:00:11]} 32. Qxg6+ {[%emt 0:00:41]} Ke7 {[%emt 0:00:20]} 33. Qxf6+ {
[%emt 0:00:15]} 1-0

[Event "48th Continental Open"]
[Site "Sturbridge, MA"]
[Date "2018.08.18"]
[Round "5.19"]
[White "Slade, Theo"]
[Black "Falcao, Wesley"]
[Result "1/2-1/2"]
[ECO "A44"]
[WhiteElo "1960"]
[BlackElo "2148"]
[PlyCount "84"]
[EventDate "2018.08.??"]
[EventType "swiss"]
[EventRounds "9"]
[EventCountry "USA"]
[TimeControl "6000+10"]
[WhiteClock "0:00:01"]
[BlackClock "0:00:07"]

1. d4 {[%emt 0:00:10]} c5 {[%emt 0:00:25]} 2. d5 {[%emt 0:00:23]} e5 {[%emt 0:
00:14]} 3. e4 {[%emt 0:01:15]} Nf6 {[%emt 0:00:14]} 4. Bd3 {[%emt 0:04:53]} d6
{[%emt 0:00:45]} 5. c4 {[%emt 0:00:55]} Be7 {[%emt 0:00:50]} 6. Nc3 {[%emt 0:
01:49]} O-O {[%emt 0:00:33]} 7. Nge2 {[%emt 0:06:30]} Ne8 {[%emt 0:01:19]} 8.
O-O {[%emt 0:02:43]} Bg5 {[%emt 0:00:33]} 9. a3 {[%emt 0:06:15]} g6 {[%emt 0:
05:07]} 10. b4 {[%emt 0:04:39]} Nd7 {[%emt 0:01:05]} 11. g3 {[%emt 0:05:59]}
Bxc1 {[%emt 0:01:31]} 12. Qxc1 {[%emt 0:01:46]} f5 {[%emt 0:09:31]} 13. f4 {
[%emt 0:03:26]} cxb4 {[%emt 0:02:53]} 14. axb4 {[%emt 0:00:58]} Qb6+ {[%emt 0:
00:15]} 15. Kg2 {[%emt 0:02:43]} Qxb4 {[%emt 0:00:35]} 16. exf5 {[%emt 0:04:14]
} gxf5 {[%emt 0:00:51]} 17. fxe5 {[%emt 0:04:30]} Nxe5 {[%emt 0:00:17]} 18.
Qg5+ {[%emt 0:02:31]} Ng7 {[%emt 0:00:46]} 19. Qe3 {[%emt 0:08:15]} Re8 {
[%emt 0:16:30]} 20. Rfb1 {[%emt 0:06:46]} Qc5 {[%emt 0:00:20]} 21. Qxc5 {
[%emt 0:00:40]} dxc5 {[%emt 0:00:17]} 22. Nf4 {[%emt 0:00:24]} Nxd3 {[%emt 0:
01:15]} 23. Nxd3 {[%emt 0:00:17]} Re3 {[%emt 0:00:14]} 24. Rd1 {[%emt 0:00:29]}
f4 {[%emt 0:00:32]} 25. Nb5 {[%emt 0:02:56]} fxg3 {[%emt 0:11:17]} 26. Nxc5 {
[%emt 0:03:39]} Nh5 {[%emt 0:15:38]} 27. hxg3 {[%emt 0:02:39]} Bg4 {[%emt 0:09:
09]} 28. Rd2 {[%emt 0:09:34]} Rc8 {[%emt 0:05:43]} 29. Nxb7 {[%emt 0:02:31]}
Rxg3+ {[%emt 0:03:52]} 30. Kh1 {[%emt 0:00:49]} Bf3+ {[%emt 0:03:19]} 31. Kh2 {
[%emt 0:00:19]} Rxc4 {[%emt 0:00:11]} 32. Nd4 {[%emt 0:01:05]} Bxd5 {[%emt 0:
03:12]} 33. Nf5 {[%emt 0:05:03]} Bxb7 {[%emt 0:05:36]} 34. Rd8+ {[%emt 0:01:42]
} Kf7 {[%emt 0:00:10]} 35. Nxg3 {[%emt 0:00:17]} Rh4+ {[%emt 0:00:05]} 36. Kg1
{[%emt 0:00:15]} Nxg3 {[%emt 0:00:41]} 37. Rxa7 {[%emt 0:00:44]} Rh1+ {[%emt 0:
00:00]} 38. Kf2 {[%emt 0:00:16]} Ne4+ {[%emt 0:00:08]} 39. Kg2 {[%emt 0:01:31]}
Nc5+ {[%emt 0:00:05]} 40. Rxb7+ {[%emt 0:00:47]} Nxb7 {[%emt 0:00:16]} 41. Rd7+
{[%emt 0:00:04]} Ke6 {[%emt 0:00:33]} 42. Rxb7 {[%emt 0:00:18]} Rh4 {[%emt 0:
00:16]} 1/2-1/2

[Event "48th Continental Open"]
[Site "Sturbridge, MA"]
[Date "2018.08.18"]
[Round "5.21"]
[White "Zhao, Jeffrey Renfei"]
[Black "Barash, Anton"]
[Result "0-1"]
[ECO "C19"]
[WhiteElo "1827"]
[BlackElo "1972"]
[PlyCount "76"]
[EventDate "2018.08.??"]
[EventType "swiss"]
[EventRounds "9"]
[EventCountry "USA"]
[TimeControl "6000+10"]
[WhiteClock "0:39:15"]
[BlackClock "0:25:52"]

1. e4 {[%emt 0:00:10]} e6 {[%emt 0:00:21]} 2. d4 {[%emt 0:00:13]} d5 {[%emt 0:
00:14]} 3. Nc3 {[%emt 0:00:10]} Bb4 {[%emt 0:00:12]} 4. e5 {[%emt 0:00:13]} c5
{[%emt 0:00:12]} 5. a3 {[%emt 0:00:28]} Bxc3+ {[%emt 0:00:11]} 6. bxc3 {
[%emt 0:00:10]} Ne7 {[%emt 0:00:16]} 7. Nf3 {[%emt 0:00:41]} Nbc6 {[%emt 0:00:
37]} 8. h4 {[%emt 0:01:04]} Bd7 {[%emt 0:11:51]} 9. h5 {[%emt 0:02:57]} h6 {
[%emt 0:01:09]} 10. Be2 {[%emt 0:07:40]} Qc7 {[%emt 0:01:14]} 11. O-O {[%emt 0:
04:00]} O-O-O {[%emt 0:01:36]} 12. g3 {[%emt 0:04:15]} f6 {[%emt 0:10:56]} 13.
Bf4 {[%emt 0:07:25]} g5 {[%emt 0:01:57]} 14. exf6 {[%emt 0:04:01]} gxf4 {
[%emt 0:00:18]} 15. fxe7 {[%emt 0:00:14]} Rdg8 {[%emt 0:00:27]} 16. Nh4 {
[%emt 0:02:35]} fxg3 {[%emt 0:02:29]} 17. f4 {[%emt 0:00:36]} Nxe7 {[%emt 0:01:
05]} 18. Rb1 {[%emt 0:06:00]} g2 {[%emt 0:05:07]} 19. Nxg2 {[%emt 0:02:46]} Nf5
{[%emt 0:06:26]} 20. Qd2 {[%emt 0:01:47]} Ng3 {[%emt 0:03:56]} 21. Rf3 {
[%emt 0:01:05]} Nxh5 {[%emt 0:06:47]} 22. Qe3 {[%emt 0:04:54]} Rg7 {[%emt 0:05:
42]} 23. Qe5 {[%emt 0:04:37]} Qxe5 {[%emt 0:00:15]} 24. fxe5 {[%emt 0:00:10]}
Rhg8 {[%emt 0:06:14]} 25. Bf1 {[%emt 0:00:10]} Ng3 {[%emt 0:00:24]} 26. Rf2 {
[%emt 0:00:10]} Ne4 {[%emt 0:00:32]} 27. dxc5 {[%emt 0:04:11]} Nxf2 {[%emt 0:
00:37]} 28. Kxf2 {[%emt 0:00:10]} Rf7+ {[%emt 0:01:26]} 29. Ke2 {[%emt 0:00:34]
} Rf5 {[%emt 0:01:10]} 30. Ne3 {[%emt 0:00:18]} Rxe5 {[%emt 0:00:22]} 31. Kd2 {
[%emt 0:00:16]} Rg3 {[%emt 0:02:02]} 32. Re1 {[%emt 0:00:11]} h5 {[%emt 0:00:
48]} 33. Ng2 {[%emt 0:01:17]} Rxe1 {[%emt 0:00:21]} 34. Nxe1 {[%emt 0:00:13]}
h4 {[%emt 0:00:55]} 35. Nd3 {[%emt 0:00:21]} h3 {[%emt 0:01:09]} 36. Nf2 {
[%emt 0:00:10]} h2 {[%emt 0:00:19]} 37. Be2 {[%emt 0:00:29]} Rg2 {[%emt 0:00:
41]} 38. Nh1 {[%emt 0:00:24]} Bb5 {[%emt 0:00:20]} 0-1

[Event "48th Continental Open"]
[Site "Sturbridge, MA"]
[Date "2018.08.18"]
[Round "6.1"]
[White "Matsenko, Sergei"]
[Black "Barbosa, Oliver"]
[Result "1/2-1/2"]
[ECO "D10"]
[WhiteElo "2533"]
[BlackElo "2545"]
[PlyCount "33"]
[EventDate "2018.08.??"]
[EventType "swiss"]
[EventRounds "9"]
[EventCountry "USA"]
[TimeControl "6000+10"]
[WhiteClock "0:33:24"]
[BlackClock "0:50:41"]

1. d4 {[%emt 0:14:38]} d5 {[%emt 0:00:41]} 2. c4 {[%emt 0:00:10]} c6 {[%emt 0:
00:10]} 3. Nc3 {[%emt 0:00:10]} Nf6 {[%emt 0:00:39]} 4. e3 {[%emt 0:00:10]} g6
{[%emt 0:01:41]} 5. Nf3 {[%emt 0:00:10]} Bg7 {[%emt 0:00:10]} 6. Bd3 {[%emt 0:
02:12]} O-O {[%emt 0:00:58]} 7. cxd5 {[%emt 0:00:25]} cxd5 {[%emt 0:00:18]} 8.
Ne5 {[%emt 0:00:10]} Nfd7 {[%emt 0:11:30]} 9. Nxd7 {[%emt 0:02:15]} Qxd7 {
[%emt 0:00:16]} 10. O-O {[%emt 0:06:15]} b6 {[%emt 0:01:31]} 11. b4 {[%emt 0:
08:38]} Nc6 {[%emt 0:00:58]} 12. Qb3 {[%emt 0:02:08]} Rd8 {[%emt 0:05:06]} 13.
Bb2 {[%emt 0:02:59]} Bb7 {[%emt 0:02:37]} 14. Rfd1 {[%emt 0:04:08]} Rac8 {
[%emt 0:00:13]} 15. a4 {[%emt 0:05:57]} Qd6 {[%emt 0:08:07]} 16. Nb5 {[%emt 0:
09:11]} Qd7 {[%emt 0:17:14]} 17. Rac1 {[%emt 0:09:50]} 1/2-1/2

[Event "48th Continental Open"]
[Site "Sturbridge, MA"]
[Date "2018.08.18"]
[Round "6.2"]
[White "Vorontsov, Pavlo"]
[Black "Gorovets, Andrey"]
[Result "1/2-1/2"]
[ECO "A13"]
[WhiteElo "2578"]
[BlackElo "2495"]
[PlyCount "45"]
[EventDate "2018.08.??"]
[EventType "swiss"]
[EventRounds "9"]
[EventCountry "USA"]
[TimeControl "6000+10"]
[WhiteClock "0:23:31"]
[BlackClock "0:48:08"]

1. c4 {[%emt 0:11:57]} e6 {[%emt 0:00:23]} 2. Nc3 {[%emt 0:00:18]} d5 {[%emt 0:
00:10]} 3. d4 {[%emt 0:00:10]} Bb4 {[%emt 0:02:47]} 4. Nf3 {[%emt 0:08:34]}
dxc4 {[%emt 0:00:18]} 5. Bg5 {[%emt 0:04:41]} Ne7 {[%emt 0:04:14]} 6. a3 {
[%emt 0:08:34]} Bxc3+ {[%emt 0:02:24]} 7. bxc3 {[%emt 0:00:10]} b5 {[%emt 0:03:
37]} 8. a4 {[%emt 0:00:10]} c6 {[%emt 0:00:10]} 9. e4 {[%emt 0:04:05]} f6 {
[%emt 0:01:47]} 10. Bf4 {[%emt 0:03:37]} a6 {[%emt 0:04:58]} 11. Be2 {[%emt 0:
01:56]} O-O {[%emt 0:04:22]} 12. O-O {[%emt 0:00:10]} Ng6 {[%emt 0:04:10]} 13.
Bc1 {[%emt 0:03:20]} Qc7 {[%emt 0:05:41]} 14. h4 {[%emt 0:23:34]} Nf4 {[%emt 0:
05:38]} 15. Ba3 {[%emt 0:00:42]} Rd8 {[%emt 0:03:29]} 16. e5 {[%emt 0:01:32]}
fxe5 {[%emt 0:05:21]} 17. Nxe5 {[%emt 0:00:10]} Nd7 {[%emt 0:00:27]} 18. Qd2 {
[%emt 0:01:03]} Nxe2+ {[%emt 0:01:32]} 19. Qxe2 {[%emt 0:00:10]} Nxe5 {[%emt 0:
00:38]} 20. Qxe5 {[%emt 0:00:54]} Qxe5 {[%emt 0:01:14]} 21. dxe5 {[%emt 0:00:
10]} Rd5 {[%emt 0:00:28]} 22. Bd6 {[%emt 0:02:33]} h5 {[%emt 0:01:54]} 23. Rfd1
{[%emt 0:01:49]} 1/2-1/2

[Event "48th Continental Open"]
[Site "Sturbridge, MA"]
[Date "2018.08.18"]
[Round "6.4"]
[White "Mishra, Abhimanyu"]
[Black "Mulyar, Michael"]
[Result "0-1"]
[ECO "B05"]
[WhiteElo "2166"]
[BlackElo "2374"]
[PlyCount "132"]
[EventDate "2018.08.??"]
[EventType "swiss"]
[EventRounds "9"]
[EventCountry "USA"]
[TimeControl "6000+10"]
[WhiteClock "0:05:26"]
[BlackClock "0:48:45"]

1. e4 {[%emt 0:04:48]} Nf6 {[%emt 0:00:20]} 2. e5 {[%emt 0:00:10]} Nd5 {
[%emt 0:00:10]} 3. d4 {[%emt 0:00:10]} d6 {[%emt 0:00:10]} 4. Nf3 {[%emt 0:00:
14]} Bg4 {[%emt 0:00:22]} 5. Be2 {[%emt 0:00:49]} e6 {[%emt 0:00:51]} 6. O-O {
[%emt 0:05:01]} Be7 {[%emt 0:00:10]} 7. b3 {[%emt 0:06:09]} O-O {[%emt 0:00:34]
} 8. c4 {[%emt 0:01:54]} Nb6 {[%emt 0:00:19]} 9. Bb2 {[%emt 0:01:30]} Nc6 {
[%emt 0:00:23]} 10. exd6 cxd6 {[%emt 0:01:12]} 11. Nbd2 {[%emt 0:09:12]} d5 {
[%emt 0:00:11]} 12. c5 {[%emt 0:02:52]} Nd7 {[%emt 0:04:04]} 13. Re1 {[%emt 0:
12:08]} b6 {[%emt 0:07:35]} 14. Bb5 {[%emt 0:02:27]} Qc7 {[%emt 0:00:10]} 15.
Bxc6 {[%emt 0:00:39]} Qxc6 {[%emt 0:00:10]} 16. b4 {[%emt 0:00:11]} a5 {
[%emt 0:01:12]} 17. a3 {[%emt 0:00:28]} Bf6 {[%emt 0:03:17]} 18. Qc1 {[%emt 0:
02:03]} Rfc8 {[%emt 0:15:56]} 19. Re3 {[%emt 0:03:46]} Qa4 {[%emt 0:03:56]} 20.
Bc3 {[%emt 0:03:22]} bxc5 {[%emt 0:03:14]} 21. bxc5 {[%emt 0:00:11]} Bf5 {
[%emt 0:03:29]} 22. Qd1 {[%emt 0:05:43]} Bc2 {[%emt 0:02:19]} 23. Qe2 {[%emt 0:
02:19]} Nxc5 {[%emt 0:04:48]} 24. dxc5 {[%emt 0:00:47]} d4 {[%emt 0:00:10]} 25.
Re4 {[%emt 0:01:36]} Bxe4 {[%emt 0:04:00]} 26. Qxe4 {[%emt 0:00:10]} e5 {
[%emt 0:02:12]} 27. Re1 {[%emt 0:05:11]} Qxa3 {[%emt 0:04:34]} 28. Ba1 {
[%emt 0:00:13]} Qxc5 {[%emt 0:00:17]} 29. Nf1 {[%emt 0:00:29]} Qc2 {[%emt 0:02:
23]} 30. Nxe5 {[%emt 0:01:49]} Qxe4 {[%emt 0:00:42]} 31. Rxe4 {[%emt 0:00:10]}
Bxe5 {[%emt 0:03:49]} 32. Rxe5 {[%emt 0:00:12]} d3 {[%emt 0:07:30]} 33. Re1 {
[%emt 0:03:59]} a4 {[%emt 0:00:15]} 34. Rd1 {[%emt 0:03:01]} a3 {[%emt 0:00:10]
} 35. Rxd3 {[%emt 0:06:15]} Rc1 {[%emt 0:00:19]} 36. Bd4 {[%emt 0:00:12]} a2 {
[%emt 0:00:17]} 37. g3 {[%emt 0:01:04]} g6 {[%emt 0:01:58]} 38. Kg2 {[%emt 0:
00:36]} Rd8 {[%emt 0:01:04]} 39. Ra3 {[%emt 0:01:05]} Rxd4 {[%emt 0:00:10]} 40.
Rxa2 {[%emt 0:00:10]} Rcd1 {[%emt 0:00:18]} 41. Ne3 {[%emt 0:05:46]} R1d2 {
[%emt 0:00:10]} 42. Rxd2 {[%emt 0:01:53]} Rxd2 {[%emt 0:00:33]} 43. h4 {
[%emt 0:03:12]} Kg7 {[%emt 0:00:21]} 44. Kf3 {[%emt 0:00:57]} h5 {[%emt 0:00:
12]} 45. Nc4 {[%emt 0:00:00]} Rc2 {[%emt 0:00:00]} 46. Ne3 {[%emt 0:00:00]} Ra2
{[%emt 0:00:00]} 47. Nd5 {[%emt 0:00:00]} Rd2 {[%emt 0:00:00]} 48. Ne3 {
[%emt 0:00:00]} Kf6 {[%emt 0:00:00]} 49. Nc4 {[%emt 0:00:00]} Ra2 {[%emt 0:00:
00]} 50. Ke3 {[%emt 0:00:00]} Ke6 {[%emt 0:00:00]} 51. Nb6 {[%emt 0:00:00]}
Ra3+ {[%emt 0:00:00]} 52. Ke2 {[%emt 0:00:00]} Rc3 {[%emt 0:00:00]} 53. Kd2 {
[%emt 0:00:00]} Rc6 {[%emt 0:00:00]} 54. Na4 {[%emt 0:00:00]} Kf5 {[%emt 0:00:
00]} 55. Nc3 {[%emt 0:00:00]} Kg4 {[%emt 0:00:00]} 56. Nb5 {[%emt 0:00:00]} Re6
{[%emt 0:00:00]} 57. Nd4 {[%emt 0:00:00]} Rd6 {[%emt 0:00:00]} 58. Ke3 {
[%emt 0:00:00]} Rxd4 {[%emt 0:00:00]} 59. Kxd4 {[%emt 0:00:00]} Kf3 {[%emt 0:
00:00]} 60. Ke5 {[%emt 0:00:00]} Kxf2 {[%emt 0:00:00]} 61. Kf4 {[%emt 0:00:00]}
f5 {[%emt 0:00:00]} 62. Kg5 {[%emt 0:00:00]} Kxg3 {[%emt 0:00:00]} 63. Kxg6 {
[%emt 0:00:03]} Kg4 {[%emt 0:00:00]} 64. Kf6 {[%emt 0:00:18]} f4 {[%emt 0:00:
00]} 65. Ke5 {[%emt 0:00:10]} f3 {[%emt 0:00:00]} 66. Ke4 {[%emt 0:00:10]} f2
0-1

[Event "48th Continental Open"]
[Site "Sturbridge, MA"]
[Date "2018.08.18"]
[Round "6.6"]
[White "Kim, Yoon-Young"]
[Black "Graif, William"]
[Result "1/2-1/2"]
[ECO "E01"]
[WhiteElo "2360"]
[BlackElo "2123"]
[PlyCount "51"]
[EventDate "2018.08.??"]
[EventType "swiss"]
[EventRounds "9"]
[EventCountry "USA"]
[TimeControl "6000+10"]
[WhiteClock "0:24:08"]
[BlackClock "0:17:01"]

1. d4 {[%emt 0:00:10]} Nf6 {[%emt 0:00:21]} 2. c4 {[%emt 0:00:13]} e6 {[%emt 0:
00:13]} 3. g3 {[%emt 0:00:13]} d5 {[%emt 0:00:19]} 4. Nf3 {[%emt 0:00:12]} Be7
{[%emt 0:00:13]} 5. Bg2 {[%emt 0:00:18]} O-O {[%emt 0:00:15]} 6. O-O {[%emt 0:
00:11]} dxc4 {[%emt 0:00:21]} 7. Qc2 {[%emt 0:00:30]} b6 {[%emt 0:00:23]} 8.
Bg5 {[%emt 0:00:26]} Ba6 {[%emt 0:00:35]} 9. Nbd2 {[%emt 0:01:08]} Nbd7 {
[%emt 0:00:55]} 10. Nxc4 {[%emt 0:02:39]} Bb7 {[%emt 0:03:29]} 11. Rfd1 {
[%emt 0:05:31]} Qc8 {[%emt 0:09:25]} 12. Nce5 {[%emt 0:04:11]} Be4 {[%emt 0:07:
42]} 13. Qa4 {[%emt 0:01:50]} Bd6 {[%emt 0:16:43]} 14. Rac1 {[%emt 0:05:33]}
Qb7 {[%emt 0:04:16]} 15. Nc4 {[%emt 0:09:00]} Rac8 {[%emt 0:15:00]} 16. Nxd6 {
[%emt 0:08:27]} cxd6 {[%emt 0:00:11]} 17. Qa3 {[%emt 0:01:47]} d5 {[%emt 0:05:
36]} 18. Bf1 {[%emt 0:00:11]} Bc2 {[%emt 0:07:32]} 19. Re1 {[%emt 0:00:22]} b5
{[%emt 0:02:21]} 20. Nd2 {[%emt 0:04:23]} Rc6 {[%emt 0:01:36]} 21. Qb4 {
[%emt 0:20:04]} a5 {[%emt 0:05:28]} 22. Qxa5 {[%emt 0:08:15]} b4 {[%emt 0:01:
45]} 23. e3 {[%emt 0:00:25]} Rb6 {[%emt 0:02:11]} 24. Rxc2 {[%emt 0:02:52]} Ra8
{[%emt 0:00:18]} 25. Qxa8+ {[%emt 0:00:54]} Qxa8 {[%emt 0:00:11]} 26. b3 {
[%emt 0:00:27]} 1/2-1/2